Cogmind - Beta 13 *** ADVENTURER MODE // 2024.04.04 @ 16:52:40 Player: Kater Result: Destroyed by S-10 Pest with Light Assault Rifle Performance ------------- Evolutions (1) 500 Regions Visited (3) 600 Robots Destroyed (30) 150 Value Destroyed (441) 441 Prototype IDs (0) 0 Alien Tech Used (0) 0 Bonus (0) 0 TOTAL SCORE: 1691 Bonus ------- None Cogmind --------- Core Integrity 0/400 Matter 333/400 Energy 99/100 System Corruption 0% Temperature Cool (0) Movement Treading (160) Location -9/Storage Parts ------- > --- POWER (1) -------- (None) > --- PROPULSION (3) --- Light Treads Light Treads > --- UTILITY (3) ------ Heat Sink Medium Storage Unit Medium Matter Pod > --- WEAPON (2) ------- Assault Rifle Heavy Flail > --- INVENTORY (10) --- Ion Engine Light Ion Engine Improved Ion Engine Medium Matter Pod (72) Beam Rifle Peak State ------------ > --- POWER ------------ Light Deuterium Engine > --- PROPULSION ------- Aluminum Leg Aluminum Leg > --- UTILITY ---------- Medium Storage Unit High-capacity Matter Pod Advanced Weight Redist. System > --- WEAPON ----------- Grenade Launcher Heavy Flail > --- INVENTORY -------- Ion Engine Ion Engine Light Ion Engine Medium Matter Pod Assault Rifle Light Cannon [Rating: 14] Favorites ----------- Power Ion Engine Engine Ion Engine Propulsion Aluminum Leg Treads Light Treads Leg Aluminum Leg Utility Medium Storage Unit Device Heat Sink Storage Medium Storage Unit Protection Light Armor Plating Weapon Medium Laser Energy Gun Medium Laser Ballistic Gun Assault Rifle Ballistic Cannon Light Cannon Launcher Grenade Launcher Impact Weapon Heavy Flail Build | -11 -10 -9 -9 ------- Run | Yrd Mat Mat Sto Slots Evolved 2 | . . 2 . Power . | . . . . Propulsion 1 | . . 1 . Utility 1 | . . 1 . Weapon . | . . . . Parts Attached 20 | 7 3 3 7 Power 2 | 1 . 1 . Engine 2 | 1 . 1 . Core . | . . . . Reactor . | . . . . Propulsion 4 | 2 . . 2 Treads 2 | . . . 2 Leg 2 | 2 . . . Wheel . | . . . . Hover . | . . . . Flight . | . . . . Utility 8 | 2 2 1 3 Device 2 | . . 1 1 Storage 5 | 2 2 . 1 Processor . | . . . . Hackware . | . . . . Protection 1 | . . . 1 Artifact . | . . . . Weapon 6 | 2 1 1 2 Energy Gun 1 | 1 . . . Energy Cannon . | . . . . Ballistic Gun 2 | 1 . . 1 Ballistic Cannon 1 | . . . 1 Launcher 1 | . 1 . . Special Weapon . | . . . . Impact Weapon 1 | . . 1 . Slashing Weapon . | . . . . Piercing Weapon . | . . . . Special Melee Weapon . | . . . . Unidentified Prototypes . | . . . . Parts Lost 8 | . . . 8 Power 1 | . . . 1 Propulsion 2 | . . . 2 Utility 3 | . . . 3 Weapon 2 | . . . 2 Highest Loss Streak 7 | . . . 7 To Critical Strikes 1 | . . . 1 Average Slot Usage (%) 79 | . 99 81 60 Engine 8 | . 14 11 2 Treads 4 | . . . 9 Leg 16 | . 28 22 4 Device 3 | . . 4 7 Storage 21 | . 28 22 15 Energy Gun 6 | . 14 6 . Ballistic Gun 4 | . 1 . 7 Launcher 7 | . 12 11 1 Impact Weapon 5 | . . 4 11 Naked Turns . | . . . . Heaviest Build 25 | 16 24 25 25 Greatest Support 40 | 20 20 29 40 Greatest Overweight (x) 5 | 3 1 1 5 Average Overweight (x) . | . . . . Largest Inventory Capacity 10 | 8 10 10 10 Average Capacity 9 | 7 9 10 10 Most Carried 6 | 3 5 6 6 Average Carried 3 | . 2 5 4 Final Capacity 10 | 8 10 10 10 Final Carried 6 | 1 5 6 5 Class Distribution -------------------- 95% | Mutant 4% | Scavenger-Mutant Dominant Class ---------------- Mutant | -10/Materials Mutant | -9/Materials Mutant | -9/Storage Resources | -11 -10 -9 -9 ----------- Run | Yrd Mat Mat Sto Matter Collected 669 | 243 12 61 353 Remotely . | . . . . Salvage Created 560 | 95 48 83 334 Parts 57 | 3 13 10 31 Haulers Intercepted 1 | . . . 1 Recyclers Shooed . | . . . . Parts Field Recycled . | . . . . Retrieved Matter . | . . . . Parts Self-Destructed . | . . . . Prevented . | . . . . Kills | -11 -10 -9 -9 ------- Run | Yrd Mat Mat Sto Combat Hostiles Destroyed 16 | . 6 3 7 Melee 1 | . . . 1 Guns 6 | . 2 . 4 Cannons 2 | . . . 2 AOE 7 | . 4 3 . Classes Destroyed 10 | 3 2 1 4 Worker 4 | 1 1 . 2 Builder 4 | . . 2 2 Tunneler 1 | 1 . . . Hauler 1 | . . . 1 Recycler 2 | 1 . 1 . Operator 1 | . . . 1 Watcher 1 | . 1 . . Swarmer 11 | . 6 3 2 Grunt 1 | . . . 1 Sentry 4 | . . . 4 Best Kill Streak 6 | 2 4 6 5 Combat Bots Only 4 | . 3 3 4 Max Kills in Single Turn 2 | 1 2 2 1 Gunslinging . | . . . . Exploded 2 | . 2 2 . Melee 1 | . . . 1 Uniques/NPCs Destroyed . | . . . . Combat | -11 -10 -9 -9 -------- Run | Yrd Mat Mat Sto Hostile Shots Fired 167 | . 30 20 117 Missed 43 | . 8 5 30 Damage Taken 1223 | . 175 113 935 Core 437 | . 35 20 382 Absorbed by Shields . | . . . . Ignored by Resistances 354 | . 48 35 271 Core Remaining (%) 93 | 100 86 . . Volleys Fired 57 | 5 12 7 33 Largest 2 | 2 2 2 1 Hottest 80 | 70 80 80 35 Shots Fired 70 | 10 17 10 33 Gun 43 | 10 12 4 17 Cannon 10 | . . . 10 Launcher 17 | . 5 6 6 Special . | . . . . Kinetic 32 | 5 . . 27 Thermal 21 | 5 12 4 . Explosive 17 | . 5 6 6 Electromagnetic . | . . . . Robot Hit Streak 24 | 9 3 3 24 Robot Miss Streak 3 | . 2 3 1 Penetration Max . | . . . . Secondary Targets . | . . . . Shots Hit Robots 51 | 9 7 3 32 Core Hits 34 | 4 8 6 16 Critical Kills 1 | . . . 1 Critical Parts Destroyed 1 | . . . 1 Critical Strikes 3 | . . . 3 Blast 1 | . . . 1 Smash 2 | . . . 2 Melee Attacks 17 | . . . 17 Impact 17 | . . . 17 Slashing . | . . . . Piercing . | . . . . Sneak Attacks 3 | . . . 3 Combat Hostiles . | . . . . Follow-up Attacks . | . . . . Damage Inflicted 2045 | 145 447 373 1080 Guns 410 | 124 74 13 199 Cannons 155 | . . . 155 Explosions 944 | . 348 360 236 Melee 490 | . . . 490 Ramming 46 | 21 25 . . Kinetic 417 | 63 . . 354 Thermal 148 | 61 74 13 . Explosive 944 | . 348 360 236 Electromagnetic . | . . . . Impact 490 | . . . 490 Slashing . | . . . . Piercing . | . . . . Highest Corruption 2 | . 2 . . Average Corruption 1 | . 1 . . Corruption Purged . | . . . . Corruption Blocked . | . . . . Effects 3 | . 3 . . Message Errors 1 | . 1 . . Heat Flow Errors 1 | . 1 . . Energy Discharges 1 | . 1 . . Overload Shots . | . . . . Overflow Damage 187 | . 8 38 141 Projectiles . | . . . . Explosions 65 | . 8 38 19 Melee 122 | . . . 122 Knockbacks 3 | . . . 3 Impact 1 | . . . 1 Kinetic 1 | . . . 1 Secondary 1 | . . . 1 Self-Inflicted Damage 48 | . 22 18 8 Shots 4 | . 2 1 1 Rammed . | . . . . Targets Rammed 15 | 10 5 . . Kicked 15 | 10 5 . . Crushed . | . . . . Highest Temperature 229 | 18 229 18 33 Average Temperature 35 | 9 54 7 15 Received Heat Transfer 450 | . . . 450 Siege Activations . | . . . . Robots Corrupted . | . . . . Combat Hostiles . | . . . . Parts Fried 3 | . . . 3 Impact Corruptions 7 | . . . 7 Robots Melted . | . . . . Combat Hostiles . | . . . . Parts Melted . | . . . . Heat Transferred 444 | 185 222 37 . Parts Sabotaged . | . . . . Parts Stolen . | . . . . Parts Stripped . | . . . . Power Chain Reactions . | . . . . Alert | -11 -10 -9 -9 ------- Run | Yrd Mat Mat Sto Peak Influence 289 | 15 212 217 289 Initial 78 | . 8 76 78 Average 119 | 4 67 136 200 Maximum Alert Level 1 | . 1 1 1 Low Security (%) 69 | 100 95 74 34 Level 1 30 | . 4 25 65 Level 2 . | . . . . Level 3 . | . . . . Level 4 . | . . . . Level 5 . | . . . . High Security . | . . . . Max Security . | . . . . Squads Dispatched 1 | . . 1 . Investigation . | . . . . Extermination . | . . . . Reinforcement 1 | . . 1 . Assault . | . . . . Garrison . | . . . . Intercept . | . . . . Searches Triggered . | . . . . Construction Impeded . | . . . . Haulers Reinforced . | . . . . Active Scanning Responses . | . . . . Cargo Convoy Interrupts . | . . . . Stealth | -11 -10 -9 -9 --------- Run | Yrd Mat Mat Sto Distress Signals 1 | . . 1 . Communications Jammed . | . . . . Distress Signals . | . . . . Times Spotted 33 | . 12 8 13 Peak Tracking Total 7 | . 4 7 6 Tactical Retreats . | . . . . Traps | -11 -10 -9 -9 ------- Run | Yrd Mat Mat Sto Traps Triggered 1 | . 1 . . Indirectly . | . . . . Trap Hack Attempts . | . . . . Triggered . | . . . . Disarmed . | . . . . Reprogrammed . | . . . . Reused . | . . . . Traps Extracted . | . . . . Installed . | . . . . Triggered . | . . . . Machines | -11 -10 -9 -9 ---------- Run | Yrd Mat Mat Sto Machines Disabled 4 | . 1 . 3 Max in Single Turn 2 | . 1 . 2 Machines Repaired . | . . . . Machines Dismantled . | . . . . Machines Sabotaged . | . . . . Overloaded Fab Kills . | . . . . Hacking | -11 -10 -9 -9 --------- Run | Yrd Mat Mat Sto Machines Accessed . | . . . . Terminals . | . . . . Fabricators . | . . . . Repair Stations . | . . . . Recycling Units . | . . . . Scanalyzers . | . . . . Garrison Access . | . . . . Total Hacks . | . . . . Successful . | . . . . Failed . | . . . . Catastrophic . | . . . . Database Lockouts . | . . . . Manual . | . . . . Terminals . | . . . . Fabricators . | . . . . Repair Stations . | . . . . Recycling Units . | . . . . Scanalyzers . | . . . . Garrison Access . | . . . . Terminal Hacks . | . . . . Fabricator Hacks . | . . . . Repair Station Hacks . | . . . . Recycling Unit Hacks . | . . . . Scanalyzer . | . . . . Garrison Access Hacks . | . . . . Unauthorized Hacks . | . . . . Terminals . | . . . . Fabricators . | . . . . Repair Stations . | . . . . Recycling Units . | . . . . Scanalyzers . | . . . . Garrison Access . | . . . . Data Cores Recovered 1 | . . . 1 Used . | . . . . Hacking Detections . | . . . . Full Trace Events . | . . . . Feedback Events . | . . . . Feedback Blocked . | . . . . Robot Schematics Acquired . | . . . . Robots Built . | . . . . Authchips . | . . . . Time . | . . . . Total Robot Build Rating . | . . . . Part Schematics Acquired . | . . . . Parts Built . | . . . . Authchips . | . . . . Time . | . . . . Total Part Build Rating . | . . . . Parts Repaired . | . . . . Time . | . . . . Parts Recycled . | . . . . Recycled Matter . | . . . . Retrieved Matter . | . . . . Retrieved Components . | . . . . Parts Scanalyzed . | . . . . Part Schematics Acquired . | . . . . Parts Damaged . | . . . . Bothacking | -11 -10 -9 -9 ------------ Run | Yrd Mat Mat Sto Used RIF Installer . | . . . . Robots Hacked . | . . . . Non-combat . | . . . . Combat . | . . . . Robot Hacks Applied . | . . . . Relay Couplers Released . | . . . . Fabnet Peak Effective % . | . . . . Robots Rewired . | . . . . Allies Hacked . | . . . . Hacks Repelled . | . . . . Allies | -11 -10 -9 -9 -------- Run | Yrd Mat Mat Sto Total Allies . | . . . . Largest Group . | . . . . Highest-Rated Group . | . . . . Highest-Rated Ally . | . . . . Total Orders . | . . . . Ally Attacks . | . . . . Total Damage . | . . . . Kills . | . . . . Allies Corrupted . | . . . . Allies Melted . | . . . . Intel | -11 -10 -9 -9 ------- Run | Yrd Mat Mat Sto Robot Analysis Total . | . . . . Derelict Logs Recovered . | . . . . Drone Launches . | . . . . Drone Recoveries . | . . . . Exploration | -11 -10 -9 -9 ------------- Run | Yrd Mat Mat Sto Turns Passed 987 | 127 366 101 393 Spaces Moved 462 | 64 189 50 159 Core 45 | 9 . . 36 Treads 77 | . . . 77 Legs 340 | 55 189 50 46 Wheels . | . . . . Hover . | . . . . Flight . | . . . . Fastest Speed 50 | 50 120 120 100 Average Speed 163 | 136 166 157 171 Slowest Speed 300 | 200 190 190 300 Overloaded Moves . | . . . . Propulsion Burnouts . | . . . . Robots Hopped . | . . . . Cave-ins Triggered . | . . . . Exploration Rate (%) 16 | 5 35 6 18 Regions Visited 3 Branch Regions 1 Pre-discovered Areas . | . . . . Known Exits Taken . | . . . . Unknown Exits Taken 3 | 1 1 1 . Scrap Searched . | . . . . Spaces Dug 9 | . . . 9 Terrain Destroyed 104 | . 29 45 30 Melee 9 | . . . 9 Projectile . | . . . . AOE 95 | . 29 45 21 Terrain Rammed 3 | . 3 . . Walls Destroyed . | . . . . Machines Disabled . | . . . . Actions | -11 -10 -9 -9 --------- Run | Yrd Mat Mat Sto Total 588 | 90 216 62 220 Wait . | . . . . Move 459 | 63 188 49 159 Hop . | . . . . Pick Up 9 | 4 3 . 2 Fast Attach 14 | 5 . 3 6 Attach 4 | 2 1 . 1 Detach 3 | . 1 2 . Swap 2 | . 2 . . Drop 5 | 1 1 1 2 Fire 57 | 5 12 7 33 Melee 17 | . . . 17 Ram 3 | . 3 . . Kick 15 | 10 5 . . Crush . | . . . . Escape Stasis . | . . . . Rewire . | . . . . Trap . | . . . . Miscellaneous . | . . . . Route ------- -11/Scrapyard -10/Materials -9/Materials -9/Storage History --------- Turn | Location | Event 40 | -11/Scrapyard | Discovered new exit (range 16) 128 | -11/Scrapyard | Entered Materials 311 | -10/Materials | Build established: Mutant 394 | -10/Materials | Discovered new exit (range 11) 494 | -10/Materials | Entered another Materials area 494 | -9/Materials | Evolved 2 slots: Propulsion x1, Utility x1 572 | -9/Materials | Discovered new exit (range 15) 595 | -9/Materials | Entered Storage 714 | -9/Storage | Core integrity fell below 50% 737 | -9/Storage | Lost 7 parts (1p2n2u2w) 743 | -9/Storage | Core integrity fell below 20% 988 | -9/Storage | Destroyed by S-10 Pest with Light Assault Rifle Last Messages --------------- Sneak attack on K-01 Serf. K-01 Serf suffers critical hit (Smash). K-01 Serf destroyed. Acquired 8 matter. Extracted 100 matter. Acquired Med. Matter Pod. K-01 Serf collects debris. Sneak attack on A-02 Transporter. Destroyed Lgt. Treads. A-02 Transporter system corrupted by crushing effect. Destroyed Ion Engine. A-02 Transporter system corrupted by crushing effect. A-02 Transporter system terminally corrupted. Weight Redist. System fried. Acquired 55 matter. [A new version of Cogmind is available, see F1 News page.] S-10 Pest destroyed. Map ----- +----------------------------------------------------+ | | | | | | | | | ?????????????????????????????????????????????????? | | ?????????????????????????????????????????????????? | | ?????????????????????????????????????????????????? | | ?????????????????????????????????????????????????? | | ?????????????????????????????????????????????????? | | ?????????????????????????????????????????????????? | | ?????????????????????????????????????????????????? | | ?????????????????????????????????????????????????? | | ?????????###########?????????????????????????????? | | ?????????# #?????????????????????????????? | | ?????????# #????###??????????????????????? | | ####+##+## #????] ??????????????????????? | | # #???? ??????????????????????? | | + /[ #???? ??????????????????????? | | # [ #???? ??????????????????????? | | ###### # ! *##???#s#??????????????????????? | | # # * ###??# #??????????????????????? | | # ######+#########[##?????????????????????? | | # ^#????#=## ### *=### ###???????????????? | | / =# ^#????#= =%=%[ ?????????? | | +! #?#### ###[[[###+##????????????????? | | # ###### =####?##@##?????????????????????? | | " " # !% ! ##???#[#??????????????????????? | | # ! ##???# #??????????????????????? | | ###### * * ##???#+#??????????????????????? | | #????###########% # ????????????????????????? | | ############# "# # ???????????????????????? | | ?# # # """???????????????????????? | | ?# # #??""?????????????????????????? | | ?# """ """ """ # #?????????????????????????????? | | ?# """ """ """ + +?????????????????????????????? | | ?? """ """ """ # #?????????????????????????????? | | ?? # #?????????????????????????????? | | ??###+########## #?????????????????????????????? | | ???????????????? #?????????????????????????????? | | ???????????????? ?????????????????????????????? | | ???????????????? ?????????????????????????????? | | ???????????????? ?????????????????????????????? | | ???????????????? ??????????????????????????????? | | ?????????????????????????????????????????????????? | | ?????????????????????????????????????????????????? | | ?????????????????????????????????????????????????? | | ?????????????????????????????????????????????????? | | ?????????????????????????????????????????????????? | | ?????????????????????????????????????????????????? | | ?????????????????????????????????????????????????? | +----------------------------------------------------+ Best States ------------- Heat Dissipation 38 Energy Generation 14 Energy Capacity 250 Matter Stores 345 Matter Capacity 500 Sight Range 16 Terrain Scan Density 10 Additional Mass Support 9 Armor Coverage 150 Resistance: KI 20 Resistance: TH 20 Resistance: EX 20 Resistance: EM 20 Resistance: I 20 Resistance: S 20 Resistance: P 20 Evasion (%) 55 Recoil Reduction 2 Offensive Hacking 10 Item Schematics ----------------- None Robot Schematics ------------------ None Fabricated ------------ Nothing Alien Tech Used ----------------- None Achievements -------------- None Challenges ------------ None Game ------ Seed CarbideCloakConstruct Manual? 0 Play Time 00:19:07 Cumulative 4.4 hours Start 2024.04.03 @ 18:58:21 End 2024.04.04 @ 16:52:40 Sessions 3 Manual Loads 0 Difficulty Adventurer Special Mode None Game No. 4 Rogue 0 Adventurer 4 Explorer 0 Win Type - Total 0 Types 0/0/0/0/0/0/0/0/0 Lore% 1 Gallery% 10 Achievement% 8 Wizard Run 0 Options --------- Layout 1 ASCII 0 Keyboard 1 Movement Arrows Keybinds 0 Fullscreen 1 Font 24/Terminus Map View 50x35 Zoom Use 0% Tactical HUD 0 Map Filters NONE Filters NONE Steam 0 RUN: ded6bad5-2c27-41da-9496-22a911b2c289